Cogmind - Beta 15 @@@ ROGUE MODE // 2025.07.18 @ 22:42:48 Player: Singularius Result: Destroyed by WU-87T(R) with Subdweller Machine Gun Performance ------------- Evolutions (0) 0 Regions Visited (2) 400 Robots Destroyed (26) 130 Value Destroyed (623) 623 Prototype IDs (4) 80 Alien Tech Used (0) 0 Bonus (0) 0 TOTAL SCORE: 1233 Bonus ------- None Cogmind --------- Core Integrity 0/250 Matter 178/300 Energy 110/125 System Corruption 0% Temperature Cool (0) Movement Walking (190) Ox1 Location -10/Subcaves Parts ------- > --- POWER (1) -------- Light Ion Engine > --- PROPULSION (2) --- Aluminum Leg Aluminum Leg > --- UTILITY (2) ------ Large Storage Unit Improved Terrain Scanner > --- WEAPON (2) ------- Barrage Gun Makeshift Shrapnel Gun > --- INVENTORY (15) --- Spiked Treads Spiked Treads Medium Matter Pod (100) Sensor Array Signal Interpreter Terrain Scan Processor Light Armor Plating Subdweller Laser Battle Rifle Barrage Gun Barrage Gun Light Cannon Subdweller Shrapnel Launcher Peak State ------------ > --- POWER ------------ Light Ion Engine > --- PROPULSION ------- Aluminum Leg Aluminum Leg > --- UTILITY ---------- Large Storage Unit Improved Terrain Scanner > --- WEAPON ----------- Barrage Gun Makeshift Shrapnel Gun > --- INVENTORY -------- Spiked Treads Spiked Treads Medium Matter Pod Sensor Array Signal Interpreter Terrain Scan Processor Light Armor Plating Subdweller Laser Battle Rifle Barrage Gun Barrage Gun Light Cannon Subdweller Shrapnel Launcher [Rating: 16] Favorites ----------- Power Light Ion Engine Engine Light Ion Engine Propulsion Light Treads Treads Light Treads Leg Aluminum Leg Utility Improved Terrain Scanner Device Improved Terrain Scanner Storage Large Storage Unit Weapon Barrage Gun Energy Gun Small Laser Energy Cannon Beam Cannon Ballistic Gun Barrage Gun Ballistic Cannon Light Cannon Build | -11 -10 -10 ------- Run | Yrd Mat Sub Slots Evolved . | . . . Power . | . . . Propulsion . | . . . Utility . | . . . Weapon . | . . . Parts Attached 19 | 8 5 6 Power 4 | 2 1 1 Engine 4 | 2 1 1 Core . | . . . Reactor . | . . . Propulsion 4 | 2 . 2 Treads 2 | 2 . . Leg 2 | . . 2 Wheel . | . . . Hover . | . . . Flight . | . . . Utility 4 | 2 2 . Device 1 | 1 . . Storage 3 | 1 2 . Processor . | . . . Hackware . | . . . Protection . | . . . Artifact . | . . . Weapon 7 | 2 2 3 Energy Gun 1 | 1 . . Energy Cannon 1 | . 1 . Ballistic Gun 3 | 1 . 2 Ballistic Cannon 2 | . 1 1 Launcher . | . . . Special Weapon . | . . . Impact Weapon . | . . . Slashing Weapon . | . . . Piercing Weapon . | . . . Special Melee Weapon . | . . . Unidentified Prototypes . | . . . Parts Lost 7 | . 3 4 Power 2 | . 1 1 Propulsion 2 | . . 2 Utility . | . . . Weapon 3 | . 2 1 Highest Loss Streak 2 | . 2 2 To Critical Strikes 1 | . . 1 Average Backups 12 | 2 11 14 Power 1 | . 1 . Propulsion 1 | 1 2 1 Utility 4 | . 4 5 Weapon 4 | . 3 6 Tool/Special . | . . . Unused Backups 18 | . 1 17 Power . | . . . Propulsion 2 | . . 2 Utility 7 | . 1 6 Weapon 9 | . . 9 Tool/Special . | . . . Average Slot Usage (%) 97 | . 95 99 Engine 11 | . 9 13 Treads 15 | . 28 3 Leg 11 | . . 24 Device 14 | . 14 14 Storage 14 | . 14 14 Energy Gun 4 | . 8 . Energy Cannon 3 | . 5 2 Ballistic Gun 10 | . 8 11 Ballistic Cannon 9 | . 5 13 Peak Build Rating 16 | 9 10 16 Average Rating 11 | 5 9 13 On Entrance 6 | . 9 9 Naked Turns . | . . . Heaviest Build 30 | 14 30 30 Greatest Support 40 | 40 40 40 Greatest Overweight (x) 1 | 1 . 1 Average Overweight (x) . | . . . Largest Inventory Capacity 15 | 8 15 15 Average Capacity 13 | 7 13 15 Most Carried 15 | 4 14 15 Average Carried 12 | 2 11 14 Final Capacity 15 | 8 15 15 Final Carried 14 | 4 14 13 Class Distribution -------------------- 100% | Mutant Dominant Class ---------------- Mutant | -10/Materials Mutant | -10/Subcaves Resources | -11 -10 -10 ----------- Run | Yrd Mat Sub Matter Collected 865 | 237 314 314 Remotely . | . . . Salvage Created 664 | 28 391 245 Parts 60 | 2 39 19 Haulers Intercepted 1 | . 1 . Recyclers Shooed 1 | . 1 . Parts Field Recycled . | . . . Retrieved Matter . | . . . Parts Self-Destructed 7 | . . 7 Prevented . | . . . Kills | -11 -10 -10 ------- Run | Yrd Mat Sub Combat Hostiles Destroyed 23 | . 15 8 Guns 11 | . 10 1 Cannons 12 | . 5 7 Classes Destroyed 7 | 1 4 2 Builder 1 | . 1 . Tunneler 1 | 1 . . Hauler 1 | . 1 . Swarmer 10 | . 9 1 Grunt 6 | . 6 . Sentry 1 | . . 1 Subdweller 6 | . . 6 Best Kill Streak 3 | 1 3 2 Combat Bots Only 3 | . 3 2 Max Kills in Single Turn 2 | 1 2 1 Gunslinging 1 | . 1 . Exploded . | . . . Melee . | . . . Uniques/NPCs Destroyed . | . . . Combat | -11 -10 -10 -------- Run | Yrd Mat Sub Hostile Shots Fired 147 | . 96 51 Missed 31 | . 20 11 Hits 116 | . 76 40 Projectile 116 | . 76 40 Critical Strikes 2 | . . 2 Damage Taken 1379 | . 649 730 Core 263 | . 111 152 Absorbed by Shields . | . . . Core Remaining (%) 100 | 100 . . Volleys Fired 109 | 1 58 50 Largest 2 | 2 2 2 Hottest 90 | 60 90 90 Shots Fired 198 | 2 110 86 Gun 100 | 2 77 21 Cannon 98 | . 33 65 Launcher . | . . . Special . | . . . Kinetic 130 | 1 59 70 Thermal 68 | 1 51 16 Explosive . | . . . Electromagnetic . | . . . Robot Hit Streak 26 | 1 12 26 Robot Miss Streak 6 | . 6 2 Penetration Max . | . . . Secondary Targets 1 | . 1 . Max Gunslinging Chain 1 | . 1 . Shots Hit Robots 122 | 1 60 61 Core Hits 35 | 1 21 13 Critical Kills . | . . . Critical Parts Destroyed . | . . . Critical Strikes 3 | . . 3 Blast 3 | . . 3 Melee Attacks . | . . . Impact . | . . . Slashing . | . . . Piercing . | . . . Sneak Attacks . | . . . Combat Hostiles . | . . . Follow-up Attacks . | . . . Damage Inflicted 1782 | 12 786 984 Guns 772 | 12 546 214 Cannons 1010 | . 240 770 Explosions . | . . . Melee . | . . . Ramming . | . . . Kinetic 1171 | . 415 756 Thermal 611 | 12 371 228 Explosive . | . . . Electromagnetic . | . . . Impact . | . . . Slashing . | . . . Piercing . | . . . Highest Corruption . | . . . Average Corruption . | . . . Corruption Purged . | . . . Corruption Blocked . | . . . Overload Shots . | . . . Overflow Damage 15 | . 15 . Projectiles 15 | . 15 . Explosions . | . . . Melee . | . . . Knockbacks 8 | . 3 5 Impact . | . . . Kinetic 7 | . 2 5 Secondary 1 | . 1 . Self-Inflicted Damage . | . . . Shots . | . . . Rammed . | . . . Targets Rammed . | . . . Kicked . | . . . Crushed . | . . . Highest Temperature 200 | . 200 . Average Temperature 70 | . 70 . Received Heat Transfer 246 | . 102 144 Siege Activations . | . . . Martial Activations . | . . . Shielding Activations . | . . . Robots Disrupted . | . . . Combat Hostiles . | . . . Robots Corrupted . | . . . Combat Hostiles . | . . . Parts Fried . | . . . Impact Corruptions . | . . . Robots Melted . | . . . Combat Hostiles . | . . . Parts Melted 1 | . 1 . Heat Transferred 1328 | 25 822 481 Parts Sabotaged . | . . . Parts Stolen . | . . . Parts Stripped . | . . . Power Chain Reactions . | . . . Alert | -11 -10 -10 ------- Run | Yrd Mat Sub Maximum Alert Level . | . . . Low Security (%) 100 | 100 100 . Level 1 . | . . . Level 2 . | . . . Level 3 . | . . . Level 4 . | . . . Level 5 . | . . . High Security . | . . . Max Security . | . . . Peak Influence 141 | 5 141 . Initial 3 | . 3 . Average 56 | . 59 . Influence Increases 514 | 5 469 40 Destroy 0b10 Robot/C 340 | . 300 40 Destroy 0b10 Robot/NC 15 | 5 10 . Destroy Leader 62 | . 62 . Successful Hack 35 | . 35 . Disable Machine 30 | . 30 . Destroy Structure 2 | . 2 . Lose Combat Pursuer 30 | . 30 . Influence Decreases 514 | . 428 86 Entered New Map 25 | . 2 23 Time Decay 449 | . 396 53 Lost Part 40 | . 30 10 Squads Dispatched 3 | . 3 . Investigation . | . . . Extermination . | . . . Reinforcement 3 | . 3 . Assault . | . . . Garrison . | . . . Intercept . | . . . Searches Triggered . | . . . Construction Impeded . | . . . Haulers Reinforced . | . . . Active Scanning Responses . | . . . Cargo Convoy Interrupts . | . . . Stealth | -11 -10 -10 --------- Run | Yrd Mat Sub Distress Signals 1 | . 1 . Communications Jammed . | . . . Distress Signals . | . . . Times Spotted 33 | . 24 9 Peak Tracking Total 5 | . 5 2 Tactical Retreats 1 | . 1 . Traps | -11 -10 -10 ------- Run | Yrd Mat Sub Traps Triggered . | . . . Indirectly . | . . . Trap Hack Attempts . | . . . Triggered . | . . . Disarmed . | . . . Reprogrammed . | . . . Reused . | . . . Traps Extracted . | . . . Installed . | . . . Triggered . | . . . Machines | -11 -10 -10 ---------- Run | Yrd Mat Sub Machines Disabled 2 | . 2 . Max in Single Turn 1 | . 1 . Machines Repaired . | . . . Machines Dismantled . | . . . Machines Sabotaged . | . . . Overloaded Fab Kills . | . . . Hacking | -11 -10 -10 --------- Run | Yrd Mat Sub Machines Accessed 10 | . 10 . Terminals 8 | . 8 . Fabricators . | . . . Repair Stations . | . . . Recycling Units 2 | . 2 . Scanalyzers . | . . . Garrison Access . | . . . Total Hacks 21 | . 21 . Successful 8 | . 8 . Failed 13 | . 13 . Catastrophic 3 | . 3 . Database Lockouts . | . . . Manual 13 | . 13 . Terminals 19 | . 19 . Fabricators . | . . . Repair Stations . | . . . Recycling Units 2 | . 2 . Scanalyzers . | . . . Garrison Access . | . . . Terminal Hacks 5 | . 5 . Robot Analysis 2 | . 2 . Prototype ID Bank 2 | . 2 . Locate Traps 1 | . 1 . Fabricator Hacks . | . . . Repair Station Hacks . | . . . Recycling Unit Hacks . | . . . Scanalyzer . | . . . Garrison Access Hacks . | . . . Unauthorized Hacks 2 | . 2 . Terminals 2 | . 2 . Botnet 2 | . 2 . Fabricators . | . . . Repair Stations . | . . . Recycling Units . | . . . Scanalyzers . | . . . Garrison Access . | . . . Data Cores Recovered . | . . . Used . | . . . Hacking Detections 8 | . 8 . Full Trace Events . | . . . Feedback Events . | . . . Feedback Blocked . | . . . Robot Schematics Acquired . | . . . Robots Built . | . . . Authchips . | . . . Time . | . . . Total Robot Build Rating . | . . . Part Schematics Acquired . | . . . Parts Built . | . . . Authchips . | . . . Time . | . . . Total Part Build Rating . | . . . Parts Repaired . | . . . Time . | . . . Parts Recycled . | . . . Recycled Matter . | . . . Retrieved Matter . | . . . Retrieved Components . | . . . Parts Scanalyzed . | . . . Part Schematics Acquired . | . . . Parts Damaged . | . . . Bothacking | -11 -10 -10 ------------ Run | Yrd Mat Sub Used RIF Installer . | . . . Robots Hacked . | . . . Non-combat . | . . . Combat . | . . . Robot Hacks Applied . | . . . Relay Couplers Released . | . . . Fabnet Peak Effective % . | . . . Robots Rewired . | . . . Allies Hacked . | . . . Hacks Repelled . | . . . Allies | -11 -10 -10 -------- Run | Yrd Mat Sub Total Allies . | . . . Largest Group . | . . . Highest-Rated Group . | . . . Highest-Rated Ally . | . . . Total Orders . | . . . Ally Attacks . | . . . Total Damage . | . . . Kills . | . . . Allies Corrupted . | . . . Allies Melted . | . . . Intel | -11 -10 -10 ------- Run | Yrd Mat Sub Active Infowar (turns) 2851 | 4 1465 1382 Terrain 2851 | 4 1465 1382 Robot Analysis Total 2 | . 2 . Derelict Logs Recovered . | . . . Drone Launches . | . . . Drone Recoveries . | . . . Exploration | -11 -10 -10 ------------- Run | Yrd Mat Sub Turns Passed 2926 | 79 1465 1382 Spaces Moved 1442 | 42 752 648 Core 6 | 6 . . Treads 855 | 36 752 67 Legs 581 | . . 581 Wheels . | . . . Hover . | . . . Flight . | . . . Fastest Speed 50 | 50 160 160 Average Speed 171 | 146 160 186 Slowest Speed 190 | 160 160 190 Overloaded Moves . | . . . Propulsion Burnouts . | . . . Robots Hopped . | . . . Potential Cave-ins . | . . . Cave-ins Triggered . | . . . Exploration Rate (%) 43 | 5 92 33 Regions Visited 2 Branch Regions 1 Pre-discovered Areas . | . . . Known Exits Taken . | . . . Unknown Exits Taken 2 | 1 1 . Scrap Searched 13 | . . 13 Spaces Dug . | . . . Terrain Destroyed 1 | . . 1 Melee . | . . . Projectile 1 | . . 1 AOE . | . . . Terrain Rammed . | . . . Walls Destroyed . | . . . Machines Disabled . | . . . Actions | -11 -10 -10 --------- Run | Yrd Mat Sub Total 1700 | 54 905 741 Wait 92 | 1 74 17 Move 1440 | 41 751 648 Hop . | . . . Pick Up 26 | 3 13 10 Fast Attach 9 | 7 . 2 Attach 7 | . 2 5 Detach . | . . . Swap 5 | 1 3 1 Drop 12 | . 4 8 Fire 109 | 1 58 50 Melee . | . . . Ram . | . . . Kick . | . . . Crush . | . . . Escape Stasis . | . . . Rewire . | . . . Trap . | . . . Miscellaneous . | . . . Route ------- -11/Scrapyard -10/Materials (discovered 4 exits: [*Mat x3] / [*Sub]) -10/Subcaves (discovered 1 exit: [*Mat]) History --------- Turn | Location | Event 13 | -11/Scrapyard | Discovered new exit (range 15) 80 | -11/Scrapyard | Entered Materials 194 | -10/Materials | Discovered new exit (range 13) 318 | -10/Materials | Build established: Mutant 667 | -10/Materials | Discovered new exit (range 16) 1294 | -10/Materials | Discovered new exit (range 3) 1410 | -10/Materials | Discovered new exit (range 8) 1545 | -10/Materials | Entered Subcaves 1546 | -10/Subcaves | Shifting Twisted Machinery released Sub. Laser 1546 | -10/Subcaves | Approached by a straggling Scientist 1608 | -10/Subcaves | Core integrity fell below 50% 1800 | -10/Subcaves | A swath of the cavern ceiling suddenly collapsed 2383 | -10/Subcaves | Disturbed a concealed Subdweller 2637 | -10/Subcaves | Discovered new exit (range 13) 2688 | -10/Subcaves | A swath of the cavern ceiling suddenly collapsed 2891 | -10/Subcaves | Core integrity fell below 20% 2927 | -10/Subcaves | Destroyed by WU-87T(R) with Subdweller Machine Gun Last Messages --------------- 02782_ S-10 Pest suffers critical hit (Blast). 02782_ Destroyed Flight Unit. 02782_ S-10 Pest destroyed. 02793_ Lgt. Ion Engine fries itself beyond repair. 02796_ Lgt. Ion Engine destroyed. 02797_ Y-45 Defender destroyed. 02803_ Beam Rifle fries itself beyond repair. 02810_ Acquired 57 matter. 02811_ Imp. Ion Engine fries itself beyond repair. 02812_ Acquired 9 matter. 02816_ Acquired 5 matter. 87-8PW(c): "I think it's somewhere west of here" 02901_ 1N-S4L(R) suffers critical hit (Blast). 02901_ 1N-S4L(R) destroyed. 02920_ WU-87T(R) knocked back. 87-8PW(c): "I think it's somewhere west of here" 02925_ Battle Cannon destroyed. Map ----- +----------------------------------------------------+ | | | | | | | | | | | ?????????????????????????????????????????????????? | | ?????????????????????????????????????????????????? | | ?????????????????????????????????????????????????? | | ?????????????????????????????????????????????????? | | ?????????????????????????????????????????????????? | | ????????????????????????#????????????????????????? | | ??????????????????????????????????????#??????????? | | ?????????????????????????#???????????????????????? | | ?????????????????????????????????????????????????? | | ?????????????????????????????????????????????????? | | ?????????????????????????????????????????????????? | | ???????????????????????????????#?????????????????? | | ??????????????????#????#?????????????#???????????? | | ???????????????????????"#?????????#??????????????? | | ?????????????#????????? ????????????????????????? | | ??????????????????###?## ????????????????????????? | | ?????????????????## #$"######?????????##?#?????? | | ??????????????????# ##"# # #???????#??????????? | | ??????????????????# < < c ####?###???????????? | | ??????????????????## ## #??#????????? | | ???????????#"???"### R% @ ##??????????? | | ?????????????""" %!* ## #### #??????????? | | ????????????#""""&![ ?####??## ####??????#??? | | ???????????????"""" ##??????# ###????????????? | | ?????????????????""" ###???## #??????????????? | | ?????????????????# " ##### ##???????????#??? | | ???????????????????# # #????????#??????? | | ???????????????????## ##??????????????#? | | ?????????????????##### ##?????#??????#???? | | ????????????????## ## ## ##??????#??????????? | | ????????????????# ##??#??????????????? | | ??????#???? ???## ### #?????????????????? | | ???????????????# #### ##???#????????????? | | ?????????????#?### # #### #??#?????????#???? | | ????????????????# ##?# #???????#???????? | | ????????????????## #?# #?#?????????????? | | ????????????????# ## #### ##?#??????????#??? | | ????????????????# ## ## ###???????????#???? | | ????????????????# ### #??#??????????????? | | ????????????????## #??###??????#??#???????? | | ???????????????#?## #???#?#??????#???#?????? | | ??????????????????### #?????????#????????????? | | ????????????????????# ###?#?#????#####??#????? | | ?????????#?????##?#?# ##?????### #??????## | | ????????????????????# ##?#??# " #?????## | +----------------------------------------------------+ Best States ------------- Heat Dissipation 25 Energy Generation 10 Energy Capacity 250 Matter Stores 300 Matter Capacity 300 Sight Range 16 Terrain Scan Range 16 Terrain Scan Density 10 Evasion (%) 40 Recoil Reduction 2 Item Schematics ----------------- None Robot Schematics ------------------ None Fabricated ------------ Nothing Repaired ---------- Nothing Alien Tech Used ----------------- None Achievements -------------- None Challenges ------------ None Game ------ Seed IntegratedBoreCloak Manual? 0 Play Time 00:27:41 Cumulative 83.0 hours Start 2025.07.18 @ 22:15:53 End 2025.07.18 @ 22:42:48 Sessions 1 Manual Loads 0 Difficulty Rogue Special Mode None Game No. 58 Rogue 58 Adventurer 0 Explorer 0 Win Type - Total 0 Types 0/0/0/0/0/0/0/0/0/0 Lore% 37 Gallery% 37 Achievement% 31 Wizard Run 0 Options --------- Layout 1 ASCII 0 Keyboard 0 Movement Numpad Keybinds 0 Fullscreen 1 Font 24/Smallcaps Map View 50x35 Zoom Use 0% Tactical HUD 1 Map Filters NONE Filters NONE Steam 1 RUN: c032514f-31ba-4b47-9030-74087222aaa4